[Event "MARCEL 1st Div Ch-League 2019"]
[Site "Dhaka"]
[Date "2019.11.16"]
[Round "5.4"]
[White "Sacchu, Afzal Hossain"]
[Black "Tutul, Dhar"]
[Result "0-1"]
[ECO "D55"]
[WhiteElo "1996"]
[BlackElo "1844"]
[Annotator "NA RC"]
[PlyCount "130"]
[EventDate "2019.11.12"]
[EventCountry "BAN"]
[SourceTitle "playchess.com"]
[Source "ChessBase"]
[SourceQuality "1"]
[TimeControl "5400+30"]

{[%evp 8,118,5,-8,11,4,13,4,0,0,3,0,0,6,0,0,0,-22,-11,-11,-4,-13,-3,-29,-11,-35,-6,-35,-13,-11,0,-72,-75,-69,-37,-135,-51,-50,-18,-28,0,-34,-45,-96,-95,-97,-103,-214,-96,-129,-130,-123,-118,-123,-118,-126,-106,-128,0,-4,0,-125,-116,-137,-118,-110,-77,-127,-143,-147,-131,-133,-52,-56,-93,0,-7,0,0,0,0,0,0,-8,0,0,0,0,0,-4,0,0,0,0,0,0,0,0,0,-33,-29,-63,-65,-55,-55,-6757,-12846,-29981,0,-237,0,-975,-29957]} 1. d4 {[%emt 1:30:30]} Nf6 {[%emt 0:00:00]} 2. Nf3 {[%emt 0:00:00]} e6 {[%emt 0:00:00]} 3. c4 {[%emt 0:00:00]} b6 {[%emt 1:31:30]} 4. Nc3 {[%emt 0:00:00]} Bb7 {[%emt 0:00:00]} 5. Bg5 {[%emt 0:00:00]} Be7 {[%emt 0:00:00]} 6. e3 {[%emt 0:00:00]} d5 {[%emt 0:00:00]} 7. Be2 {[%emt 0:00:00]} O-O {[%emt 0:00:00]} 8. O-O {[%emt 0:00:00]} Nbd7 {[%emt 0:00:00]} 9. Rc1 {[%emt 0:00:00]} c5 {[%emt 0:00:00]} 10. dxc5 {[%emt 0:00:00] D55: Queen's Gambit Declined: 4 Bg5 Be7: Lines without ...h6 and 6...h6 7 Bxf6} Nxc5 {[%emt 0:00:00]} (10... bxc5 11. Qb3 Bc6 12. Rfd1 Rb8 13. Qc2 Nb6 14. b3 Qc7 15. Bd3 h6 16. Bf4 Bd6 17. Bxd6 Qxd6 {1-0 (46) Schneider,I (2517)-Narva,M (2211) Katowice 2017}) 11. a3 {[%emt 0:00:00]} Rc8 {[%emt 0:00:00]} 12. b4 {[%emt 0:00:00]} Nce4 {[%emt 0:00:00]} 13. Nxe4 {[%emt 0:00:00]} Nxe4 {[%emt 0:00:00]} 14. Bxe7 {[%emt 0:00:00]} Qxe7 {[%emt 0:00:00]} 15. Qb3 $146 {[%emt 0:00:00]} ({Predecessor:} 15. Qa4 Bc6 16. b5 Nc5 17. Qb4 {½-½ (88) Borchgrevink,H-Wahlstrom,S Gausdal 1998}) 15... Rfd8 {[%emt 0:00:00]} 16. Rfd1 {[%emt 0:00:00]} dxc4 {[%emt 0:00:00]} 17. Bxc4 {[%emt 0:00:00]} Qf6 {[%emt 0:00:00]} 18. Rxd8+ {[%emt 0:00:00]} Rxd8 {[%emt 0:00:00]} 19. Rd1 {[%emt 0:00:00]} (19. Bd3 $11) 19... Rc8 {[%emt 0:00:00]} 20. Rf1 {[%emt 0:00:00]} h5 {[%emt 0:00:00]} 21. h4 {[%emt 0:00:00]} (21. Qd3 $142) 21... Nd6 {[%emt 0:00:00]} (21... g5 $17 22. hxg5 Nxg5 23. Nxg5 Qxg5) 22. Be2 {[%emt 0:00:00]} Bxf3 {[%emt 0:00:00]} (22... Bd5 $5 {[%cal Rd5b3]} 23. Qd1 g6 $15) 23. Bxf3 {[%emt 0:00:00]} Qxh4 {[%emt 0:00:00]} 24. Qa4 {[%emt 0:11:30]} Rc7 {[%emt 0:00:00]} 25. Rd1 {[%emt 0:00:00] [#]} (25. g3 $15 Qg5 26. Qd1) 25... Ne4 $1 {[%emt 0:00:00]} 26. g3 {[%emt 0:00:00] [#]} Nxg3 $1 {[%emt 0:00:00]} 27. Qe8+ {[%emt 0:00:00]} Kh7 {[%emt 0:00:00]} 28. Qb8 {[%emt 0:00:00] [#]} Ne4 $1 {[%emt 0:04:18]} 29. Bxe4+ {[%emt 0:00:00]} Qxe4 {[%emt 0:00:07]} 30. Qxc7 {[%emt 0:00:00]} Qg4+ {[%emt 0:00:13] Double Attack} 31. Kh2 {[%emt 0:00:00]} Qxd1 {[%emt 0:00:26]} 32. Qxf7 {[%emt 0:00:00]} Qd6+ {[%emt 0:02:44]} 33. Kg1 {[%emt 0:00:00]} Qd1+ {[%emt 0:01:32]} 34. Kh2 {[%emt 0:00:00]} Qe2 {[%emt 0:01:16]} 35. b5 {[%emt 0:00:00]} Qxb5 {[%emt 0:02:05]} 36. Qxe6 {[%emt 0:00:00]} Qc5 {[%emt 0:01:27]} 37. f4 {[%emt 0:00:00]} Qc2+ {[%emt 0:00:22]} 38. Kh3 {[%emt 0:00:00]} Qg6 {[%emt 0:00:57]} 39. Qd7 {[%emt 0:00:00]} a5 {[%emt 0:00:25]} ({Black should play} 39... Kh6 $17 40. Kh4 {[#]} b5 $1 {[%mdl 512]}) 40. a4 {[%emt 0:00:00]} Qe4 {[%emt 0:01:09]} 41. Kh4 {[%emt 0:00:00]} Qh1+ {[%emt 0:00:11]} ({Better is} 41... Qxe3 $17 42. Qf7 Qe4) 42. Kg5 {[%emt 0:00:00]} Qg2+ {[%emt 0:01:24]} 43. Kxh5 {[%emt 0:00:00]} Qh2+ {[%emt 0:00:13]} 44. Kg4 {[%emt 0:00:00]} Qg2+ {[%emt 0:00:09]} 45. Kh4 {[%emt 0:00:00]} Qf2+ {[%emt 0:00:30]} 46. Kg4 {[%emt 0:00:00]} Qg2+ {[%emt 0:00:03]} 47. Kh4 {[%emt 0:00:00]} Qf2+ {[%emt 0:00:35]} 48. Kg4 {[%emt 0:00:00]} Qxe3 {[%emt 0:00:11]} 49. Qf5+ {[%emt 0:00:00]} Kg8 {[%emt 0:00:09]} 50. Qc8+ {[%emt 0:00:00]} Kf7 {[%emt 0:00:07]} 51. Qc7+ {[%emt 0:00:13]} Kf6 {[%emt 0:01:04]} 52. Qd8+ {[%emt 0:00:22]} Kg6 {[%emt 0:00:24]} 53. Qg5+ {[%emt 0:00:56]} Kf7 {[%emt 0:00:13]} 54. Qf5+ {[%emt 0:00:30]} Ke7 {[%emt 0:00:18]} 55. Qg5+ {[%emt 0:00:05]} Kd6 {[%emt 0:00:38]} 56. Kh5 $2 {[%emt 0:01:29] [#]} (56. Qb5 $15) 56... Qe8+ $1 {[%emt 0:01:14]} 57. Qg6+ {[%emt 0:00:01] [#]} Ke7 $11 {[%emt 0:00:19]} (57... Qxg6+ $1 {mates} 58. Kxg6 b5 {[%mdl 64] Promotion} 59. axb5 a4 60. b6 a3 61. f5 a2 62. Kh5 a1=Q 63. Kg6 Qg1+ 64. Kf7 Qxb6 65. f6 Qc7+ 66. Kg8 gxf6 67. Kh8 f5 68. Kg8 Ke6 69. Kh8 Kf7 70. Kh7 Qh2#) 58. f5 {[%emt 0:13:24] [#]} Qf7 $2 {[%emt 0:01:20]} ({Not} 58... Qxa4 59. Qxg7+ Ke8 60. Qe5+ Kf8 61. Qf6+ Kg8 62. Qg6+ (62. Qxb6 Qe8+ 63. Kg5 Qe7+ 64. f6 Qe5+ 65. Kg6 Qe4+ 66. Kg5 Qe5+ 67. Kg6 Qe4+ 68. Kg5 Qe5+ $11) 62... Kf8 63. Qh6+ Kf7 64. Qe6+ (64. Qxb6 Qd1+ 65. Kh4 Qe1+ 66. Kh5 Qe2+ 67. Kg5 Qe7+ 68. Kf4 Qb4+ 69. Qxb4 axb4 $11) 64... Kf8 65. Qxb6 $11 Qe8+ 66. Kh6 a4 $11) ({Better is} 58... b5 $1 $19 {[%cal Rb5a4]} 59. Qxe8+ Kxe8) 59. Kg5 $2 {[%emt 0:00:00] [#]} (59. Qxf7+ $11 Kxf7 60. Kg5) 59... Qf6+ $1 {[%emt 0:01:21]} 60. Kh5 {[%emt 0:00:00]} Kf8 {[%emt 0:00:33]} 61. Qh7 {[%emt 0:00:00]} Kf7 {[%emt 0:00:24]} 62. Kg4 {[%emt 0:00:00]} Qh6 {[%emt 0:00:23]} 63. Qxh6 {[%emt 0:00:00]} gxh6 {[%emt 0:00:02]} 64. Kh5 {[%emt 0:00:00]} Kf6 {[%emt 0:00:03]} 65. Kxh6 {[%emt 0:00:00]} Kxf5 {[%emt 0:02:11] Kg5+} 0-1

[Event "MARCEL 1st Div Ch-League 2019"]
[Site "Dhaka"]
[Date "2019.11.16"]
[Round "5.6"]
[White "Md Sirajul, Islam"]
[Black "Bhuiyan, Golam Mostafa"]
[Result "0-1"]
[ECO "B07"]
[WhiteElo "1768"]
[BlackElo "2060"]
[Annotator "NA RC"]
[PlyCount "87"]
[EventDate "2019.11.12"]
[EventCountry "BAN"]
[SourceTitle "playchess.com"]
[Source "ChessBase"]
[SourceQuality "1"]
[TimeControl "5400+30"]

{[%evp 8,87,-4,-18,-5,-3,-15,-6,5,-22,-2,-8,-1,-3,2,-4,-8,-55,-52,-55,-50,-85,-93,-75,-51,-71,-43,-108,-62,-154,1,0,8,0,77,79,75,63,75,56,60,-8,0,-68,0,-77,-64,-71,-85,-82,-72,-65,-72,-79,-49,-70,-26,-72,-44,-47,-49,-66,-45,-246,-239,-225,-261,-210,-301,-354,-397,-791,-587,-577,-580,-29990,-29991,-29991,-29986,-29992,-29993,-29998]} 1. e4 {[%emt 0:00:00]} d6 {[%emt 0:00:00]} 2. Nf3 {[%emt 0:00:00]} g6 {[%emt 0:00:00]} 3. c3 {[%emt 0:00:14]} (3. d4 Nf6 4. Nc3 Bg7 5. Be2 O-O 6. O-O a6 7. h3 b5 8. e5 Nfd7 9. exd6 cxd6 10. Re1 Bb7 11. Bf1 Nf6 12. Bg5 Nbd7 13. a3 h6 14. Bf4 Nb6 15. Nh2 {0-1 (35) Wang,H (2730)-Andreikin,D (2719) St Petersburg 2018}) 3... Nf6 {[%emt 0:00:43]} 4. d3 {[%emt 0:00:12]} Bg7 {[%emt 1:31:17]} 5. Be2 {[%emt 0:00:15]} O-O {[%emt 0:00:00]} 6. O-O {[%emt 0:00:08] B07: Pirc Defence: Miscellaneous Systems} e5 {[%emt 0:00:00]} 7. Bg5 {[%emt 0:00:17]} h6 {[%emt 0:00:00]} 8. Be3 {[%emt 0:00:16]} c5 $146 {[%emt 0:00:00]} ({Predecessor:} 8... Nc6 9. h3 Qe7 10. Qc2 Nd8 11. Nh2 Ne6 12. Ng4 Nxg4 13. Bxg4 {0-1 (26) Mandic,V (2116)-Djosic,S (2262) Belgrade 2011}) 9. c4 {[%emt 0:00:23]} Nc6 {[%emt 0:00:00]} 10. Nc3 {[%emt 0:00:06]} Nd4 {[%emt 0:00:00]} 11. Qd2 {[%emt 0:01:06]} Kh7 {[%emt 0:00:00]} 12. Nd5 {[%emt 0:01:26]} Nxd5 {[%emt 0:00:00]} 13. cxd5 {[%emt 0:00:01]} f5 {[%emt 0:00:00]} 14. Ne1 {[%emt 0:00:58]} Nxe2+ {[%emt 0:00:00]} 15. Qxe2 {[%emt 0:00:03]} f4 {[%emt 0:00:00]} 16. Bd2 {[%emt 0:00:03]} g5 {[%emt 0:00:00]} 17. f3 {[%emt 0:00:57]} a5 {[%emt 0:00:00]} 18. g4 {[%emt 0:00:21]} (18. a4 $1 $15) 18... fxg3 $2 {[%emt 0:00:00]} (18... b5 $17 19. a4 b4) 19. hxg3 {[%emt 0:00:01]} b5 {[%emt 0:00:00]} 20. Kg2 {[%emt 0:00:24]} a4 {[%emt 0:00:00]} (20... g4 $11) 21. Rh1 {[%emt 0:00:25]} Kg8 {[%emt 0:00:00]} 22. Nc2 {[%emt 0:01:42]} b4 {[%emt 0:00:00]} 23. Raf1 {[%emt 0:00:45]} Ra7 {[%emt 0:00:00]} 24. Ne1 {[%emt 0:04:25]} (24. Ne3 $14) 24... Rf6 {[%emt 0:00:00]} 25. Qe3 {[%emt 0:03:41]} (25. Nc2 $11) 25... Raf7 {[%emt 0:00:00]} (25... b3 $15 26. a3 Qf8) 26. Qg1 {[%emt 0:05:19]} (26. Nc2 $1 $11) 26... Qd7 {[%emt 0:00:00]} 27. Rh2 {[%emt 0:05:20]} Qb5 {[%emt 0:00:00]} 28. Qe3 {[%emt 0:01:00]} Ba6 {[%emt 0:00:00]} 29. Rf2 {[%emt 0:01:25]} Rg6 {[%emt 0:00:00]} 30. Rh1 {[%emt 0:03:48]} Bf6 {[%emt 0:00:00]} 31. Qe2 {[%emt 0:02:31]} Bd8 {[%emt 0:00:00]} (31... b3 $5 {[%cal Rb3a2]} 32. a3 Bg7 $17) 32. Be3 {[%emt 0:01:48]} Ba5 {[%emt 0:00:00]} 33. b3 {[%emt 1:07:10]} Bd8 {[%emt 0:00:00]} 34. Kh2 {[%emt 0:00:00]} Bc8 {[%emt 0:00:00]} 35. f4 $2 {[%emt 0:00:00]} (35. Ng2 $15) 35... gxf4 {[%emt 0:00:00]} 36. gxf4 {[%emt 0:00:00]} Bg4 {[%emt 0:00:00]} ({Avoid the trap} 36... Qd7 $2 37. f5 $18) ({Less strong is} 36... exf4 37. Bxf4 axb3 38. axb3 $17) 37. Qd2 {[%emt 0:00:00] [#]} exf4 $1 {[%emt 0:00:00]} 38. Rxf4 {[%emt 0:00:00]} Bf6 {[%emt 0:00:00]} 39. Rf2 $2 {[%emt 0:00:00]} (39. bxa4 Qxa4 40. Rg1) 39... Qe8 {[%emt 0:00:00]} 40. Rhf1 {[%emt 0:00:00]} Qe5+ {[%emt 0:00:00]} 41. Bf4 {[%emt 0:00:00]} Qh5+ {[%emt 0:00:00]} 42. Kg1 {[%emt 0:00:00]} Bc3 {[%emt 0:00:00]} 43. Qc1 {[%emt 0:00:00]} Bxe1 {[%emt 0:00:00]} 44. Be3 {[%emt 0:05:30]} 0-1

[Event "MARCEL 1st Div Ch-League 2019"]
[Site "Dhaka"]
[Date "2019.11.16"]
[Round "5.7"]
[White "Islam, Mohammad Aminul"]
[Black "Md. Moniruzzaman, Masud"]
[Result "1-0"]
[ECO "A09"]
[WhiteElo "2078"]
[BlackElo "1828"]
[Annotator "NA RC"]
[PlyCount "36"]
[EventDate "2019.11.12"]
[EventCountry "BAN"]
[SourceTitle "playchess.com"]
[Source "ChessBase"]
[SourceQuality "1"]
[TimeControl "5400+30"]

{[%evp 8,36,127,124,194,197,197,202,201,174,177,177,204,191,245,182,158,185,179,163,161,148,170,147,215,194,222,36,61,49,127]} 1. c4 {[%emt 0:00:28]} Nf6 {[%emt 0:01:02]} 2. Nf3 {[%emt 0:00:10]} d5 {[%emt 0:01:46]} 3. cxd5 {[%emt 0:02:02]} Nxd5 {[%emt 0:01:20]} 4. e4 {[%emt 0:00:07]} Nb4 {[%emt 0:01:36]} 5. d4 {[%emt 0:01:03]} e5 {[%emt 0:01:35] [#]} (5... Nd7 $16 {might work better.} 6. a3 Nc6) 6. a3 $1 {[%emt 0:02:23]} ({Weaker is} 6. Nxe5 Qxd4 {[%mdl 64] Decoy} 7. Qxd4 (7. Bb5+ c6 $11) 7... Nc2+ {[%mdl 64] Double Attack} 8. Kd1 Nxd4 $11) (6. dxe5 Qxd1+ 7. Kxd1 Be6 $11) 6... N4c6 {[%emt 0:02:39] [#]} 7. d5 $1 {[%emt 0:01:19]} ({Worse is} 7. Nxe5 Qxd4 8. Nf3 Qxd1+ 9. Kxd1 Bc5 $11) ({Weaker is} 7. dxe5 Qxd1+ 8. Kxd1 Bc5 $11) 7... Ne7 {[%emt 0:05:22]} 8. Nxe5 {[%emt 0:00:28]} Ng6 {[%emt 0:00:39]} 9. Nc4 {[%emt 0:04:46]} c6 {[%emt 0:01:43]} 10. Nc3 {[%emt 0:00:26]} Bc5 {[%emt 0:02:50]} 11. Be3 {[%emt 0:03:35]} Bxe3 {[%emt 0:00:25]} 12. Nxe3 {[%emt 0:00:03]} O-O {[%emt 0:00:16]} 13. Be2 {[%emt 0:03:43]} Nf4 {[%emt 0:03:03]} 14. O-O {[%emt 0:01:27]} Qg5 {[%emt 0:00:41]} 15. g3 {[%emt 0:02:47]} Nxe2+ {[%emt 0:01:04]} (15... cxd5 $16 16. Ncxd5 (16. exd5 Nh3+ 17. Kg2 Nf4+ 18. Kh1 Nxe2 $16) (16. Nexd5 Nxe2+ 17. Qxe2 Bh3 $18) 16... Nxd5) 16. Qxe2 {[%emt 0:00:03]} Bh3 {[%emt 0:00:25]} 17. f4 $2 {[%emt 0:01:55]} (17. Rfd1 $18) 17... Bxf1 {[%emt 0:00:48]} 18. Rxf1 {[%emt 0:00:06]} ({Don't play} 18. fxg5 Bxe2 19. Nxe2 Nd7 $17) 18... Qe7 $16 {[%emt 0:00:28]} ({Black should try} 18... Qd8 $14) 1-0

[Event "MARCEL 1st Div Ch-League 2019"]
[Site "Dhaka"]
[Date "2019.11.16"]
[Round "5.8"]
[White "Shivshankar Iyer S"]
[Black "Avik, Sarker"]
[Result "0-1"]
[ECO "E06"]
[WhiteElo "1573"]
[BlackElo "1980"]
[Annotator "NA RC"]
[PlyCount "92"]
[EventDate "2019.11.12"]
[EventCountry "BAN"]
[SourceTitle "playchess.com"]
[Source "ChessBase"]
[SourceQuality "1"]
[TimeControl "5400+30"]

{[%evp 8,92,-1,8,0,-16,-4,0,7,-18,-19,-25,0,0,0,0,3,-6,40,1,23,45,68,30,12,18,50,-31,-29,0,-4,0,19,-156,-138,-258,-190,-558,-604,-573,-613,-581,32767,-485,-480,-468,-454,-493,-436,-491,32767,32767,32767,32767,32767,-498,-490,-4782,-5398,-5718,-29975,-29987,-29988,-29988,-544,-710,-555,-598,-347,-549,-704,-572,-631,-605,-711,-714,-652,-710,-671,-679,-685,-752,-763,-738,-1153,-852,-2750]} 1. d4 {[%emt 0:00:00]} d5 {[%emt 0:00:00]} 2. c4 {[%emt 0:00:32]} e6 {[%emt 0:00:00]} 3. Nc3 {[%emt 0:00:17]} Nf6 {[%emt 0:00:25]} 4. g3 {[%emt 0:01:05]} Be7 {[%emt 0:04:17]} 5. Bg2 {[%emt 0:01:06]} O-O {[%emt 0:01:08]} 6. Nf3 {[%emt 0:00:14]} dxc4 {[%emt 0:01:51]} 7. Ne5 {[%emt 0:01:26]} c5 {[%emt 0:10:22]} 8. e3 {[%emt 0:00:17] E06: Closed Catalan: Early deviations} (8. dxc5 Qxd1+ 9. Nxd1 Bxc5 10. O-O Nd5 11. Ne3 Nc6 12. N3xc4 Nxe5 13. Nxe5 Bd4 14. Nd3 {½-½ (14) Nakamura,H (2761)-Radjabov,T (2759) Moscow 2019}) 8... cxd4 {[%emt 0:05:22]} 9. exd4 {[%emt 0:00:08]} Nd5 {[%emt 0:07:46]} 10. Nxc4 $146 {[%emt 0:04:09]} ({Predecessor:} 10. O-O a6 11. Nxc4 Nb6 12. Ne5 N8d7 13. Be3 Nxe5 14. dxe5 Nc4 15. Bd4 Nxb2 16. Qh5 Ba3 17. Ne4 Be7 18. Bxb2 {1-0 (18) Cucchiani,C (1974)-Duttweiler,R (1724) Zuerich 2002}) 10... Nc6 {[%emt 0:04:00]} 11. O-O {[%emt 0:00:24]} Bf6 {[%emt 0:01:52]} 12. Be3 {[%emt 0:00:34]} a6 {[%emt 0:11:09]} 13. a4 {[%emt 0:01:35]} Nde7 {[%emt 0:08:59]} 14. d5 {[%emt 0:09:23]} exd5 {[%emt 0:07:34]} 15. Nb6 {[%emt 0:04:56]} ({But not} 15. Bxd5 Bxc3 16. Bxc6 Bxb2 $15) 15... d4 {[%emt 0:00:41]} 16. Nxa8 {[%emt 0:00:10]} Bf5 {[%emt 0:08:25]} 17. g4 {[%emt 0:05:25]} (17. Nc7 $14 Qxc7 18. Bf4) 17... Be6 {[%emt 0:08:31]} 18. g5 {[%emt 0:03:25]} Be5 {[%emt 0:00:43]} 19. f4 {[%emt 0:01:30]} Bb8 {[%emt 0:01:28]} (19... Nf5 $15 20. Bc1 Bb8) 20. Bxc6 $2 {[%emt 0:02:26]} (20. Bf2 $1 $11) 20... Nxc6 {[%emt 0:01:50]} 21. f5 $2 {[%emt 0:00:23]} (21. Bf2 $17 {keeps fighting.}) 21... Bc4 {[%emt 0:01:26]} 22. Qh5 $2 {[%emt 0:00:58]} (22. Rf3 Ne5 23. Rh3) 22... Bxf1 {[%emt 0:02:42]} 23. Rxf1 {[%emt 0:01:15]} dxe3 {[%emt 0:01:57]} 24. Rd1 {[%emt 0:04:44] [#]} e2 $1 {[%emt 0:02:25]} 25. Qxe2 {[%emt 0:00:53]} Ba7+ {[%emt 0:00:47] Discovered Attack} 26. Kh1 {[%emt 0:00:13]} Qxa8 {[%emt 0:00:12]} 27. Nd5 {[%emt 0:02:11] [#]} b5 $1 {[%emt 0:01:08]} 28. Qg2 {[%emt 0:01:03]} Kh8 {[%emt 0:03:30]} 29. axb5 {[%emt 0:01:08]} axb5 {[%emt 0:00:44]} 30. Rc1 {[%emt 0:03:25]} Nd4 31. f6 {[%emt 0:04:04]} gxf6 {[%emt 0:02:22]} 32. gxf6 {[%emt 0:00:16]} (32. Nxf6 $142 Nf3 33. Rf1 Nxg5 34. Qxa8 Rxa8 35. Ra1) 32... Rg8 {[%emt 0:00:38]} 33. Qe4 {[%emt 0:00:20] [#]} Ne2 $1 {[%emt 0:01:04]} 34. Re1 {[%emt 0:01:47] [#]} Nf4 $1 {[%emt 0:00:49] Back Rank} 35. Nc3 {[%emt 0:00:05] [#]} Qxe4+ {[%emt 0:00:29]} (35... Nd3 $142 $1 36. Rf1 {[#]} Rg1+ $1 {[%mdl 576] Deflection} 37. Rxg1 Nf2+ {[%mdl 64] Double Attack, Pin} 38. Kg2 Nxe4 {[%mdl 64] Discovered Attack} 39. Re1 Nxf6+ {[%mdl 64] Discovered Attack} 40. Ne4 Nxe4 41. Kf3 Nd2+ $1 {[%mdl 576] Discovered Attack (Double check)} 42. Ke2 Nc4 43. h3 Qe4+ 44. Kd1 Qd4+ 45. Ke2 Qe3+ {[%mdl 64] Double Attack} 46. Kf1 Qf3#) 36. Nxe4 {[%emt 0:00:05] [#]} Nd3 $1 {[%emt 0:00:37]} 37. Ra1 {[%emt 0:00:23]} Nf2+ {[%emt 0:00:39]} 38. Nxf2 {[%emt 0:00:06]} Bxf2 {[%emt 0:00:02]} 39. h3 {[%emt 0:00:18]} Bd4 {[%emt 0:00:19] Double Attack} 40. Ra5 {[%emt 0:01:06]} Rb8 {[%emt 0:00:26]} 41. b3 {[%emt 0:00:28]} Bxf6 {[%emt 0:00:10]} 42. Kg2 {[%emt 0:00:14]} Bc3 {[%emt 0:00:25]} 43. Ra7 {[%emt 0:00:35]} Kg7 {[%emt 0:00:11]} 44. Kf3 {[%emt 0:00:14]} Re8 {[%emt 0:00:35]} 45. Rb7 {[%emt 0:00:31]} b4 {[%emt 0:00:10]} 46. Rd7 {[%emt 0:00:14]} Re1 $19 {[%emt 0:00:07]} 0-1

[Event "MARCEL 1st Div Ch-League 2019"]
[Site "Dhaka"]
[Date "2019.11.16"]
[Round "5.11"]
[White "Mohammad Salman, Munshi"]
[Black "Nayem, Haque"]
[Result "1/2-1/2"]
[ECO "D03"]
[WhiteElo "1593"]
[BlackElo "1875"]
[Annotator "NA RC"]
[PlyCount "104"]
[EventDate "2019.11.12"]
[EventCountry "BAN"]
[SourceTitle "playchess.com"]
[Source "ChessBase"]
[SourceQuality "1"]
[TimeControl "5400+30"]

{[%evp 8,104,0,4,8,12,13,-2,8,-3,0,10,28,-8,20,10,14,14,63,4,26,21,33,32,79,99,581,594,791,762,928,889,824,912,868,954,1130,1038,954,1408,1043,1291,1314,1210,29994,817,870,745,674,685,631,465,416,368,385,32767,32767,272,263,247,255,267,283,253,308,233,302,127,151,0,198,152,32767,32767,302,287,311,32767,32767,32767,32767,32767,32767,32767,32767,8,32,8,134,70,71,47,76,56,22,0,0,0,0]} 1. d4 {[%emt 1:30:30]} d5 {[%emt 1:30:30]} 2. Bg5 {[%emt 0:00:30]} Nf6 {[%emt 0:00:30]} 3. e3 {[%emt 0:00:30]} e6 {[%emt 0:00:30]} 4. Bd3 {[%emt 0:00:30]} Be7 {[%emt 0:00:30]} 5. Nf3 {[%emt 0:00:30]} Nbd7 {[%emt 0:00:30]} 6. O-O {[%emt 0:00:30] D03: 1 d4 d5 2 Nf3 Nf6 3 Bg5, including Torre Attack with early ...d5} (6. Nbd2 c5 7. c3 b6 8. O-O Bb7 9. a4 a6 10. Qb1 Rc8 11. b4 cxb4 12. cxb4 Rc3 13. b5 a5 14. Rc1 Rxc1+ 15. Qxc1 Qb8 16. Ne5 Nxe5 17. dxe5 {1-0 (27) Romanov,E (2577)-Shimanov,A (2615) Yaroslavl 2019}) 6... O-O {[%emt 0:00:30]} 7. c4 {[%emt 0:00:30]} h6 {[%emt 0:00:30]} 8. Bf4 {[%emt 0:00:30]} c5 {[%emt 0:00:30]} 9. cxd5 $146 {[%emt 0:00:30]} ({Predecessor:} 9. Nc3 cxd4 10. exd4 dxc4 11. Bxc4 Nb6 12. Bb3 Nbd5 13. Nxd5 Nxd5 14. Bxd5 Qxd5 15. Re1 Bd6 16. Bxd6 Qxd6 17. Qe2 Rd8 {½-½ (17) Pecka,J (1383)-Mareska,D (1697) Klatovy 2018}) 9... exd5 {[%emt 0:00:30]} 10. b3 {[%emt 0:00:30]} ({White should try} 10. Nc3 $14) 10... b6 {[%emt 0:00:30]} 11. Nc3 {[%emt 0:00:30]} Bb7 {[%emt 0:00:30]} 12. Rc1 {[%emt 0:00:30]} a6 {[%emt 0:00:30]} 13. Ne2 {[%emt 0:00:30]} ({White should play} 13. Nh4 $14) 13... Ne4 {[%emt 0:00:30]} 14. Ne5 {[%emt 0:00:30]} Nxe5 {[%emt 0:00:30]} 15. Bxe5 {[%emt 0:00:30]} cxd4 {[%emt 0:00:30]} 16. Nxd4 {[%emt 0:00:30]} Qd7 $2 {[%emt 0:00:30]} (16... Bc5 $16 {lives longer.}) 17. Rc7 {[%emt 0:00:30]} Qe8 {[%emt 0:00:30]} 18. Rxb7 {[%emt 0:00:30]} Bd8 {[%emt 0:00:30] [#]} 19. Bxg7 $1 {[%emt 0:00:30]} Kxg7 {[%emt 0:00:30]} 20. Nf5+ {[%emt 0:00:30]} Kh8 {[%emt 0:00:30]} 21. Nxh6 {[%emt 0:00:30]} Qe6 {[%emt 0:00:30]} 22. Qh5 {[%emt 0:00:30]} Kg7 {[%emt 0:00:30]} 23. Nf5+ {[%emt 0:00:30]} Kg8 {[%emt 0:00:30]} 24. Bxe4 {[%emt 0:00:30]} dxe4 {[%emt 0:00:30]} 25. Rd1 {[%emt 0:00:30]} Qg6 {[%emt 0:00:30]} 26. Qh3 {[%emt 0:00:30]} (26. Qxg6+ $142 fxg6 27. Nh6+ Kh8 28. Rdd7 Rf7 29. Rxf7 Bc7 30. Rfxc7 g5 31. Rh7#) 26... Bf6 {[%emt 0:00:30]} 27. Rxb6 {[%emt 0:00:30]} Rad8 {[%emt 0:00:30]} 28. Rf1 {[%emt 0:00:30]} Rfe8 {[%emt 0:00:30]} 29. Qg3 {[%emt 0:00:30]} Qxg3 {[%emt 0:00:30]} 30. hxg3 {[%emt 0:00:30]} ({Don't take} 30. Nxg3 Be5 $18) 30... Re6 {[%emt 0:00:30]} 31. Rxe6 {[%emt 0:00:30]} fxe6 {[%emt 0:00:30]} 32. Nd4 {[%emt 0:00:30]} Bxd4 {[%emt 0:00:30]} 33. exd4 {[%emt 0:00:30]} Rxd4 {[%emt 0:00:30]} 34. Re1 {[%emt 0:00:30]} Kf7 {[%emt 0:00:30]} 35. Re2 {[%emt 0:00:30]} Kf6 {[%emt 0:00:30]} 36. Kh2 {[%emt 0:00:30]} Kf5 $1 $11 {[%emt 0:00:30]} 37. Kh3 {[%emt 0:00:30]} (37. f3 $18) 37... Rd8 {[%emt 0:00:30]} 38. Kh2 {[%emt 0:00:30]} (38. g4+ $16 Kf4 39. Kh2) 38... Rd3 $2 {[%emt 0:00:30]} 39. Rc2 {[%emt 0:00:30]} Rd1 {[%emt 0:00:30]} 40. Rb2 {[%emt 0:00:30]} Ke5 {[%emt 0:00:30]} (40... a5 $16 41. Rc2 e5) 41. b4 {[%emt 0:00:30]} Kd4 {[%emt 0:00:30]} (41... Ra1 {was worth a try.} 42. b5 axb5 43. Rxb5+ Kd4) 42. b5 axb5 43. Rxb5 Rd2 44. Kg1 Rxa2 45. Rb1 Rd2 46. g4 {[%emt 0:02:30]} (46. Rb4+ $16 Ke5 47. f3) 46... Ke5 {[%emt 0:02:30]} 47. g3 {[%emt 0:00:30]} Rd5 {[%emt 0:00:30]} ({Better is} 47... Kf6 $14) 48. Rb8 {[%emt 0:00:30]} (48. Re1 $16) 48... Rd2 {[%emt 0:00:30]} 49. Kf1 {[%emt 0:00:30]} Ra2 {[%emt 0:00:30]} (49... e3 $1 $11) 50. Rf8 {[%emt 0:00:30]} Ra7 {[%emt 0:00:30]} 51. Rg8 {[%emt 0:00:30]} Ra1+ {[%emt 0:00:30]} 52. Kg2 {[%emt 0:00:30]} Ra2 $11 {[%emt 0:00:30]} 1/2-1/2

[Event "MARCEL 1st Div Ch-League 2019"]
[Site "Dhaka"]
[Date "2019.11.16"]
[Round "5.12"]
[White "Islam, Sheik Md. Khairul"]
[Black "Md. Nasim Hossain, Bhuiyan"]
[Result "1-0"]
[ECO "C55"]
[WhiteElo "1966"]
[BlackElo "1801"]
[Annotator "NA RC"]
[PlyCount "30"]
[EventDate "2019.11.12"]
[EventCountry "BAN"]
[SourceTitle "playchess.com"]
[Source "ChessBase"]
[SourceQuality "1"]
[TimeControl "5400+30"]

{[%evp 8,30,38,38,41,15,28,25,52,20,22,14,19,0,37,37,113,91,92,93,106,109,119,24,131]} 1. e4 {[%emt 1:30:30]} e5 {[%emt 1:30:30]} 2. Nf3 {[%emt 0:00:30]} Nc6 {[%emt 0:00:30]} 3. Bc4 {[%emt 0:00:30]} Nf6 {[%emt 0:00:30]} 4. d3 {[%emt 0:00:30]} Be7 {[%emt 0:00:30]} 5. O-O {[%emt 0:00:30]} O-O {[%emt 0:00:30]} 6. c3 {[%emt 0:00:30]} d5 {[%emt 0:00:30]} 7. exd5 {[%emt 0:00:30]} Nxd5 {[%emt 0:00:30]} 8. Re1 {[%emt 0:00:30]} Nb6 {[%emt 0:00:30]} 9. Bb3 {[%emt 0:00:30]} Bg4 {[%emt 0:00:30]} 10. Qe2 {[%emt 0:00:30]} Bf6 {[%emt 0:00:30]} 11. Nbd2 {[%emt 0:00:30]} g6 {[%emt 0:00:30]} (11... a5 $14) 12. h3 {[%emt 0:00:30]} Bf5 {[%emt 0:00:30]} 13. Ne4 {[%emt 0:00:30]} Bg7 {[%emt 0:00:30]} 14. Bg5 {[%emt 0:00:30]} Qc8 {[%emt 0:00:30]} 15. Qe3 {[%emt 0:00:30]} (15. Nf6+ $16 Kh8 16. Nxe5) 15... Nd7 $16 {[%emt 0:00:30]} (15... a5 $11 {remains equal.}) 1-0